[Event "Titled Tuesday Blitz September 27 Late 2022"]
[White "Korchmar, Vasiliy"]
[Black "Babazada, Khazar"]
[WhiteFideId "24131750"]
[BlackFideId "13413554"]
[WhiteElo "2370"]
[BlackElo "2409"]
[Result "1/2-1/2"]
[Round "06"]
[TimeControl "180+1"]
[Date "2022.09.27"]
[WhiteClock "0:00:02"]
[BlackClock "0:00:47"]

1. e4 {[%clk 0:03:00]}  e6 {[%clk 0:02:57]} 2. d4 {[%clk 0:03:00]}  d5 {[%clk 0:02:58]} 3. e5 {[%clk 0:03:01]}  c5 {[%clk 0:02:57]} 4. c3 {[%clk 0:03:01]}  Nc6 {[%clk 0:02:57]} 5. Nf3 {[%clk 0:03:02]}  Bd7 {[%clk 0:02:57]} 6. Be2 {[%clk 0:03:00]}  cxd4 {[%clk 0:02:56]} 7. cxd4 {[%clk 0:03:00]}  Qb6 {[%clk 0:02:56]} 8. O-O {[%clk 0:02:59]}  Nh6 {[%clk 0:02:56]} 9. Bxh6 {[%clk 0:02:59]}  gxh6 {[%clk 0:02:56]} 10. Qd2 {[%clk 0:02:41]}  Rg8 {[%clk 0:02:55]} 11. Nc3 {[%clk 0:02:33]}  Ne7 {[%clk 0:02:38]} 12. Bd3 {[%clk 0:02:23]}  Rg7 {[%clk 0:02:25]} 13. Rfc1 {[%clk 0:02:21]}  Rc8 {[%clk 0:02:22]} 14. a3 {[%clk 0:02:10]}  a6 {[%clk 0:02:14]} 15. b4 {[%clk 0:02:09]}  Qd8 {[%clk 0:02:13]} 16. Ne2 {[%clk 0:01:56]}  Rxc1+ {[%clk 0:02:11]} 17. Rxc1 {[%clk 0:01:57]}  Ng6 {[%clk 0:02:11]} 18. Ng3 {[%clk 0:01:55]}  Nh4 {[%clk 0:02:11]} 19. Nxh4 {[%clk 0:01:46]}  Qxh4 {[%clk 0:02:12]} 20. Rc7 {[%clk 0:01:46]}  Qxd4 {[%clk 0:02:08]} 21. Rxb7 {[%clk 0:01:06]}  Qxe5 {[%clk 0:02:07]} 22. Bxa6 {[%clk 0:00:58]}  h5 {[%clk 0:01:59]} 23. Qc1 {[%clk 0:00:52]}  Bd6 {[%clk 0:01:55]} 24. Bb5 {[%clk 0:00:47]}  Bc7 {[%clk 0:01:10]} 25. Rxc7 {[%clk 0:00:43]}  Bxb5 {[%clk 0:01:09]} 26. Rc8+ {[%clk 0:00:41]}  Ke7 {[%clk 0:01:10]} 27. Qc5+ {[%clk 0:00:41]}  Kf6 {[%clk 0:01:08]} 28. Qxb5 {[%clk 0:00:42]}  h4 {[%clk 0:01:07]} 29. Nf1 {[%clk 0:00:23]}  h3 {[%clk 0:01:07]} 30. Ng3 {[%clk 0:00:20]}  h5 {[%clk 0:01:03]} 31. Qd3 {[%clk 0:00:05]}  h4 {[%clk 0:01:01]} 32. Qc3 {[%clk 0:00:04]}  d4 {[%clk 0:00:49]} 33. Qf3+ {[%clk 0:00:04]}  Ke7 {[%clk 0:00:50]} 34. Qb7+ {[%clk 0:00:04]}  Kf6 {[%clk 0:00:50]} 35. Qf3+ {[%clk 0:00:04]}  Ke7 {[%clk 0:00:48]} 36. Qb7+ {[%clk 0:00:03]}  Kf6 {[%clk 0:00:47]} 37. Qf3+ {[%clk 0:00:02]} 1/2-1/2


[Site "https://www.chess.com"]

[Event "Titled Tuesday Blitz September 27 Late 2022"]
[White "Martinez Alcantara, Jose Eduardo"]
[Black "Gabrielian, Artur"]
[WhiteFideId "3805662"]
[BlackFideId "4131002"]
[WhiteElo "2703"]
[BlackElo "2467"]
[Result "1-0"]
[Round "06"]
[TimeControl "180+1"]
[Date "2022.09.27"]
[WhiteClock "0:01:07"]
[BlackClock "0:00:01"]

1. e4 {[%clk 0:03:00]}  c5 {[%clk 0:02:59]} 2. Nf3 {[%clk 0:03:01]}  d6 {[%clk 0:03:00]} 3. c3 {[%clk 0:03:02]}  Nf6 {[%clk 0:02:59]} 4. h3 {[%clk 0:03:03]}  g6 {[%clk 0:02:59]} 5. Bd3 {[%clk 0:03:03]}  Bg7 {[%clk 0:03:00]} 6. Bc2 {[%clk 0:03:04]}  O-O {[%clk 0:03:00]} 7. d4 {[%clk 0:03:05]}  cxd4 {[%clk 0:02:38]} 8. cxd4 {[%clk 0:03:06]}  Nc6 {[%clk 0:02:37]} 9. O-O {[%clk 0:03:06]}  Nb4 {[%clk 0:02:32]} 10. Bb3 {[%clk 0:03:06]}  d5 {[%clk 0:02:25]} 11. e5 {[%clk 0:03:06]}  Ne4 {[%clk 0:02:24]} 12. Nc3 {[%clk 0:03:06]}  Be6 {[%clk 0:02:21]} 13. Re1 {[%clk 0:03:03]}  Nxc3 {[%clk 0:02:05]} 14. bxc3 {[%clk 0:03:04]}  Nc6 {[%clk 0:02:05]} 15. Ng5 {[%clk 0:02:51]}  Bf5 {[%clk 0:01:58]} 16. e6 {[%clk 0:02:31]}  fxe6 {[%clk 0:01:47]} 17. g4 {[%clk 0:02:22]}  h6 {[%clk 0:01:31]} 18. Nxe6 {[%clk 0:02:22]}  Bxe6 {[%clk 0:01:30]} 19. Rxe6 {[%clk 0:02:23]}  Rf6 {[%clk 0:01:12]} 20. Rxf6 {[%clk 0:02:20]}  exf6 {[%clk 0:01:12]} 21. Qf3 {[%clk 0:02:19]}  Ne7 {[%clk 0:01:12]} 22. Ba3 {[%clk 0:02:19]}  Kh7 {[%clk 0:01:09]} 23. Re1 {[%clk 0:02:18]}  Nc6 {[%clk 0:01:06]} 24. Bxd5 {[%clk 0:02:15]}  Qa5 {[%clk 0:00:51]} 25. Bc5 {[%clk 0:02:13]}  Rd8 {[%clk 0:00:47]} 26. Bxc6 {[%clk 0:02:12]}  bxc6 {[%clk 0:00:47]} 27. Re7 {[%clk 0:02:13]}  Qxa2 {[%clk 0:00:32]} 28. Qxf6 {[%clk 0:02:05]}  Rg8 {[%clk 0:00:27]} 29. Qxc6 {[%clk 0:01:56]}  Qa1+ {[%clk 0:00:20]} 30. Kg2 {[%clk 0:01:56]}  Qxc3 {[%clk 0:00:20]} 31. Rxa7 {[%clk 0:01:54]}  Qd3 {[%clk 0:00:16]} 32. Qf3 {[%clk 0:01:52]}  Qc4 {[%clk 0:00:14]} 33. Re7 {[%clk 0:01:47]}  Kh8 {[%clk 0:00:14]} 34. Qe4 {[%clk 0:01:46]}  Rf8 {[%clk 0:00:13]} 35. Rxg7 {[%clk 0:01:43]}  Kxg7 {[%clk 0:00:10]} 36. Bxf8+ {[%clk 0:01:43]}  Kxf8 {[%clk 0:00:11]} 37. Qxg6 {[%clk 0:01:38]}  Qxd4 {[%clk 0:00:11]} 38. Qxh6+ {[%clk 0:01:36]}  Kf7 {[%clk 0:00:09]} 39. Qe3 {[%clk 0:01:36]}  Qc4 {[%clk 0:00:09]} 40. Kg3 {[%clk 0:01:35]}  Qf1 {[%clk 0:00:09]} 41. Qf3+ {[%clk 0:01:33]}  Kg7 {[%clk 0:00:09]} 42. h4 {[%clk 0:01:33]}  Qg1+ {[%clk 0:00:09]} 43. Qg2 {[%clk 0:01:33]}  Qa1 {[%clk 0:00:08]} 44. h5 {[%clk 0:01:31]}  Qe5+ {[%clk 0:00:06]} 45. Kh3 {[%clk 0:01:31]}  Qe1 {[%clk 0:00:06]} 46. Qf3 {[%clk 0:01:30]}  Qf1+ {[%clk 0:00:06]} 47. Kh4 {[%clk 0:01:30]}  Qg1 {[%clk 0:00:05]} 48. Qb7+ {[%clk 0:01:17]}  Kg8 {[%clk 0:00:05]} 49. Qc8+ {[%clk 0:01:17]}  Kh7 {[%clk 0:00:04]} 50. Qd7+ {[%clk 0:01:17]}  Kh8 {[%clk 0:00:05]} 51. Qe8+ {[%clk 0:01:17]}  Kg7 {[%clk 0:00:05]} 52. Qe7+ {[%clk 0:01:17]}  Kh8 {[%clk 0:00:05]} 53. Kg5 {[%clk 0:01:14]}  Qc1+ {[%clk 0:00:04]} 54. Qe3 {[%clk 0:01:12]}  Qd1 {[%clk 0:00:02]} 55. Qe5+ {[%clk 0:01:11]}  Kh7 {[%clk 0:00:02]} 56. Qf5+ {[%clk 0:01:08]}  Kh8 {[%clk 0:00:02]} 57. f4 {[%clk 0:01:08]}  Qd2 {[%clk 0:00:02]} 58. h6 {[%clk 0:01:06]}  Qa2 {[%clk 0:00:01]} 59. Qf6+ {[%clk 0:01:06]}  Kg8 {[%clk 0:00:01]} 60. Qg7# {[%clk 0:01:07]} 1-0


[Site "https://www.chess.com"]

[Event "Titled Tuesday Blitz September 27 Late 2022"]
[White "Meduri, Aakaash"]
[Black "Fawzy, Adham"]
[WhiteFideId "2032252"]
[BlackFideId "10613129"]
[WhiteElo "2113"]
[BlackElo "2541"]
[Result "0-1"]
[Round "06"]
[TimeControl "180+1"]
[Date "2022.09.28"]
[WhiteClock "0:01:21"]
[BlackClock "0:01:41"]

1. d4 {[%clk 0:03:00]}  Nf6 {[%clk 0:02:59]} 2. Nc3 {[%clk 0:03:00]}  d5 {[%clk 0:02:59]} 3. Bf4 {[%clk 0:03:01]}  Bf5 {[%clk 0:02:58]} 4. f3 {[%clk 0:03:01]}  c6 {[%clk 0:02:54]} 5. g4 {[%clk 0:03:00]}  Bg6 {[%clk 0:02:55]} 6. h4 {[%clk 0:03:00]}  h6 {[%clk 0:02:52]} 7. e3 {[%clk 0:03:00]}  Nbd7 {[%clk 0:02:52]} 8. Bd3 {[%clk 0:02:56]}  Bxd3 {[%clk 0:02:41]} 9. cxd3 {[%clk 0:02:57]}  e6 {[%clk 0:02:33]} 10. Nge2 {[%clk 0:02:53]}  b5 {[%clk 0:02:32]} 11. Rc1 {[%clk 0:02:50]}  a5 {[%clk 0:02:32]} 12. Nb1 {[%clk 0:02:46]}  Qb6 {[%clk 0:02:32]} 13. Kf2 {[%clk 0:02:44]}  c5 {[%clk 0:02:30]} 14. dxc5 {[%clk 0:02:44]}  Bxc5 {[%clk 0:02:30]} 15. d4 {[%clk 0:02:44]}  Be7 {[%clk 0:02:30]} 16. Nd2 {[%clk 0:02:41]}  a4 {[%clk 0:02:24]} 17. Bc7 {[%clk 0:02:41]}  Qa6 {[%clk 0:02:24]} 18. Qc2 {[%clk 0:02:27]}  Rc8 {[%clk 0:02:18]} 19. Qd3 {[%clk 0:02:26]}  O-O {[%clk 0:02:13]} 20. g5 {[%clk 0:02:25]}  Ne8 {[%clk 0:02:13]} 21. Bf4 {[%clk 0:02:18]}  h5 {[%clk 0:02:11]} 22. Ng3 {[%clk 0:02:13]}  g6 {[%clk 0:02:10]} 23. Rhg1 {[%clk 0:02:08]}  Bd6 {[%clk 0:02:08]} 24. Rxc8 {[%clk 0:02:03]}  Qxc8 {[%clk 0:02:08]} 25. Qxb5 {[%clk 0:01:51]}  Bxf4 {[%clk 0:02:03]} 26. exf4 {[%clk 0:01:52]}  Qc2 {[%clk 0:02:03]} 27. Ke2 {[%clk 0:01:50]}  Nd6 {[%clk 0:01:54]} 28. Qxd7 {[%clk 0:01:48]}  Nc4 {[%clk 0:01:55]} 29. Rd1 {[%clk 0:01:48]}  Nxb2 {[%clk 0:01:54]} 30. Re1 {[%clk 0:01:37]}  Qd3+ {[%clk 0:01:53]} 31. Kf2 {[%clk 0:01:37]}  Qxd2+ {[%clk 0:01:53]} 32. Re2 {[%clk 0:01:36]}  Nd3+ {[%clk 0:01:51]} 33. Kg2 {[%clk 0:01:35]}  Nxf4+ {[%clk 0:01:51]} 34. Kf2 {[%clk 0:01:35]}  Qxd4+ {[%clk 0:01:49]} 35. Kf1 {[%clk 0:01:35]}  Nxe2 {[%clk 0:01:48]} 36. Nxe2 {[%clk 0:01:35]}  Qxh4 {[%clk 0:01:48]} 37. Qe7 {[%clk 0:01:32]}  Rb8 {[%clk 0:01:46]} 38. a3 {[%clk 0:01:23]}  Rb1+ {[%clk 0:01:45]} 39. Kg2 {[%clk 0:01:24]}  Qh1+ {[%clk 0:01:44]} 40. Kg3 {[%clk 0:01:20]}  Qe1+ {[%clk 0:01:43]} 41. Kf4 {[%clk 0:01:20]}  Qxe2 {[%clk 0:01:42]} 42. Qd8+ {[%clk 0:01:20]}  Kh7 {[%clk 0:01:42]} 43. Qf8 {[%clk 0:01:21]}  Qd2+ {[%clk 0:01:41]} 0-1


[Site "https://www.chess.com"]

[Event "Titled Tuesday Blitz September 27 Late 2022"]
[White "Melkumyan, Hrant"]
[Black "Mikhailov, Viacheslav"]
[WhiteFideId "13302485"]
[BlackFideId "4187369"]
[WhiteElo "2604"]
[BlackElo "2381"]
[Result "0-1"]
[Round "06"]
[TimeControl "180+1"]
[Date "2022.09.27"]
[WhiteClock "0:00:05"]
[BlackClock "0:00:12"]

1. Nf3 {[%clk 0:03:00]}  Nf6 {[%clk 0:02:59]} 2. c4 {[%clk 0:03:00]}  g6 {[%clk 0:03:00]} 3. Nc3 {[%clk 0:03:00]}  Bg7 {[%clk 0:03:00]} 4. e4 {[%clk 0:03:00]}  O-O {[%clk 0:03:01]} 5. d4 {[%clk 0:03:01]}  d6 {[%clk 0:03:02]} 6. Be2 {[%clk 0:03:01]}  Bg4 {[%clk 0:03:02]} 7. Be3 {[%clk 0:02:54]}  Nc6 {[%clk 0:03:01]} 8. d5 {[%clk 0:02:49]}  Bxf3 {[%clk 0:03:01]} 9. Bxf3 {[%clk 0:02:44]}  Ne5 {[%clk 0:03:01]} 10. Be2 {[%clk 0:02:44]}  c6 {[%clk 0:03:02]} 11. O-O {[%clk 0:02:37]}  Rc8 {[%clk 0:02:59]} 12. b3 {[%clk 0:02:30]}  a6 {[%clk 0:02:52]} 13. Rc1 {[%clk 0:02:30]}  Qa5 {[%clk 0:02:44]} 14. Bd2 {[%clk 0:02:09]}  Qd8 {[%clk 0:02:32]} 15. f4 {[%clk 0:02:05]}  Ned7 {[%clk 0:02:32]} 16. Be3 {[%clk 0:02:05]}  Qa5 {[%clk 0:02:27]} 17. Qd2 {[%clk 0:02:04]}  Rfe8 {[%clk 0:02:16]} 18. Rfd1 {[%clk 0:02:03]}  cxd5 {[%clk 0:02:04]} 19. exd5 {[%clk 0:02:02]}  Nf8 {[%clk 0:01:30]} 20. h3 {[%clk 0:01:59]}  e6 {[%clk 0:01:24]} 21. dxe6 {[%clk 0:01:54]}  Nxe6 {[%clk 0:01:25]} 22. Kh2 {[%clk 0:01:48]}  b5 {[%clk 0:01:05]} 23. Ne4 {[%clk 0:01:30]}  Qxd2 {[%clk 0:01:02]} 24. Nxf6+ {[%clk 0:01:30]}  Bxf6 {[%clk 0:01:02]} 25. Bxd2 {[%clk 0:01:31]}  Nxf4 {[%clk 0:00:55]} 26. Bg4 {[%clk 0:01:30]}  Be5 {[%clk 0:00:25]} 27. g3 {[%clk 0:01:21]}  Ne6 {[%clk 0:00:18]} 28. cxb5 {[%clk 0:00:54]}  axb5 {[%clk 0:00:19]} 29. Bb4 {[%clk 0:00:50]}  Ra8 {[%clk 0:00:18]} 30. Rc2 {[%clk 0:00:48]}  Nd4 {[%clk 0:00:17]} 31. Rcd2 {[%clk 0:00:48]}  h5 {[%clk 0:00:17]} 32. Bd7 {[%clk 0:00:31]}  Red8 {[%clk 0:00:04]} 33. Rxd4 {[%clk 0:00:31]}  Bxd4 {[%clk 0:00:04]} 34. Bxb5 {[%clk 0:00:17]}  Rxa2+ {[%clk 0:00:04]} 35. Kh1 {[%clk 0:00:18]}  Ra1 {[%clk 0:00:03]} 36. Rxa1 {[%clk 0:00:16]}  Bxa1 {[%clk 0:00:04]} 37. Bc6 {[%clk 0:00:17]}  Bd4 {[%clk 0:00:04]} 38. Kg2 {[%clk 0:00:17]}  Rb8 {[%clk 0:00:03]} 39. Ba5 {[%clk 0:00:11]}  Rxb3 {[%clk 0:00:03]} 40. g4 {[%clk 0:00:10]}  h4 {[%clk 0:00:03]} 41. Be1 {[%clk 0:00:09]}  Bf6 {[%clk 0:00:01]} 42. Bf2 {[%clk 0:00:07]}  Rb2 {[%clk 0:00:02]} 43. Kf3 {[%clk 0:00:07]}  Bg5 {[%clk 0:00:02]} 44. Bd5 {[%clk 0:00:07]}  Rc2 {[%clk 0:00:01]} 45. Be4 {[%clk 0:00:07]}  Rc8 {[%clk 0:00:01]} 46. Bd5 {[%clk 0:00:08]}  Be7 {[%clk 0:00:02]} 47. Be4 {[%clk 0:00:08]}  Bf6 {[%clk 0:00:02]} 48. Bd5 {[%clk 0:00:09]}  Kg7 {[%clk 0:00:02]} 49. Be3 {[%clk 0:00:09]}  Rc3 {[%clk 0:00:03]} 50. Ke4 {[%clk 0:00:10]}  g5 {[%clk 0:00:03]} 51. Ba8 {[%clk 0:00:08]}  Ra3 {[%clk 0:00:03]} 52. Bd5 {[%clk 0:00:09]}  Ra4+ {[%clk 0:00:04]} 53. Kf3 {[%clk 0:00:09]}  Kg6 {[%clk 0:00:03]} 54. Be4+ {[%clk 0:00:09]}  Kg7 {[%clk 0:00:04]} 55. Bc6 {[%clk 0:00:10]}  Ra3 {[%clk 0:00:04]} 56. Ke4 {[%clk 0:00:10]}  d5+ {[%clk 0:00:04]} 57. Bxd5 {[%clk 0:00:11]}  Be7 {[%clk 0:00:05]} 58. Bc6 {[%clk 0:00:09]}  f6 {[%clk 0:00:05]} 59. Bd5 {[%clk 0:00:10]}  Bd6 {[%clk 0:00:05]} 60. Bc6 {[%clk 0:00:09]}  Bf4 {[%clk 0:00:05]} 61. Bxf4 {[%clk 0:00:02]}  gxf4 {[%clk 0:00:06]} 62. Kxf4 {[%clk 0:00:02]}  Rxh3 {[%clk 0:00:06]} 63. g5 {[%clk 0:00:03]}  Rg3 {[%clk 0:00:06]} 64. gxf6+ {[%clk 0:00:03]}  Kxf6 {[%clk 0:00:07]} 65. Bd7 {[%clk 0:00:04]}  Rg7 {[%clk 0:00:07]} 66. Bh3 {[%clk 0:00:03]}  Rg3 {[%clk 0:00:07]} 67. Bc8 {[%clk 0:00:03]}  Ke7 {[%clk 0:00:07]} 68. Bf5 {[%clk 0:00:03]}  Kd6 {[%clk 0:00:07]} 69. Be4 {[%clk 0:00:03]}  Kc5 {[%clk 0:00:08]} 70. Bh1 {[%clk 0:00:04]}  Kd4 {[%clk 0:00:09]} 71. Bb7 {[%clk 0:00:04]}  Kc3 {[%clk 0:00:09]} 72. Bc6 {[%clk 0:00:04]}  Kd2 {[%clk 0:00:09]} 73. Bb7 {[%clk 0:00:04]}  Ke1 {[%clk 0:00:10]} 74. Bc6 {[%clk 0:00:04]}  Kf2 {[%clk 0:00:10]} 75. Bd7 {[%clk 0:00:04]}  h3 {[%clk 0:00:11]} 76. Bxh3 {[%clk 0:00:05]}  Rxh3 {[%clk 0:00:12]} 0-1


[Site "https://www.chess.com"]

[Event "Titled Tuesday Blitz September 27 Late 2022"]
[White "Naroditsky, Daniel"]
[Black "Jobava, Baadur"]
[WhiteFideId "2026961"]
[BlackFideId "13601520"]
[WhiteElo "2628"]
[BlackElo "2582"]
[Result "1/2-1/2"]
[Round "06"]
[TimeControl "180+1"]
[Date "2022.09.27"]
[WhiteClock "0:00:04"]
[BlackClock "0:00:06"]

1. e4 {[%clk 0:03:00]}  e6 {[%clk 0:02:58]} 2. d4 {[%clk 0:02:58]}  d5 {[%clk 0:02:59]} 3. Nd2 {[%clk 0:02:58]}  Bd7 {[%clk 0:02:58]} 4. Ngf3 {[%clk 0:02:53]}  dxe4 {[%clk 0:02:59]} 5. Nxe4 {[%clk 0:02:54]}  Bc6 {[%clk 0:02:59]} 6. Bd3 {[%clk 0:02:54]}  Nd7 {[%clk 0:02:59]} 7. O-O {[%clk 0:02:54]}  Ngf6 {[%clk 0:03:00]} 8. Ned2 {[%clk 0:02:54]}  g6 {[%clk 0:03:00]} 9. b3 {[%clk 0:02:54]}  Bg7 {[%clk 0:03:00]} 10. Ba3 {[%clk 0:02:54]}  Bf8 {[%clk 0:03:00]} 11. Bb2 {[%clk 0:02:54]}  Bg7 {[%clk 0:03:01]} 12. Ba3 {[%clk 0:02:48]}  Bf8 {[%clk 0:03:01]} 13. Bxf8 {[%clk 0:02:48]}  Kxf8 {[%clk 0:03:01]} 14. Qe2 {[%clk 0:02:45]}  Kg7 {[%clk 0:03:00]} 15. c4 {[%clk 0:02:46]}  Re8 {[%clk 0:02:54]} 16. Rad1 {[%clk 0:02:43]}  a5 {[%clk 0:02:54]} 17. Rfe1 {[%clk 0:02:40]}  Bxf3 {[%clk 0:02:53]} 18. Nxf3 {[%clk 0:02:40]}  c6 {[%clk 0:02:54]} 19. h3 {[%clk 0:02:33]}  Qb6 {[%clk 0:02:53]} 20. Qb2 {[%clk 0:02:32]}  Rad8 {[%clk 0:02:48]} 21. a3 {[%clk 0:02:24]}  Kg8 {[%clk 0:02:43]} 22. b4 {[%clk 0:02:17]}  axb4 {[%clk 0:02:44]} 23. axb4 {[%clk 0:02:18]}  Ra8 {[%clk 0:02:37]} 24. Ra1 {[%clk 0:02:13]}  Qc7 {[%clk 0:02:34]} 25. Bf1 {[%clk 0:02:04]}  Qf4 {[%clk 0:02:27]} 26. b5 {[%clk 0:02:01]}  c5 {[%clk 0:02:23]} 27. Rad1 {[%clk 0:01:52]}  Qc7 {[%clk 0:02:16]} 28. dxc5 {[%clk 0:01:41]}  Qxc5 {[%clk 0:02:17]} 29. Ne5 {[%clk 0:01:29]}  Nxe5 {[%clk 0:02:02]} 30. Rxe5 {[%clk 0:01:29]}  Qe7 {[%clk 0:02:02]} 31. g3 {[%clk 0:01:18]}  Nd7 {[%clk 0:02:00]} 32. Re3 {[%clk 0:01:15]}  Nc5 {[%clk 0:02:01]} 33. Bg2 {[%clk 0:01:12]}  Rad8 {[%clk 0:02:00]} 34. Rxd8 {[%clk 0:01:00]}  Rxd8 {[%clk 0:02:01]} 35. Kh2 {[%clk 0:00:55]}  b6 {[%clk 0:01:59]} 36. h4 {[%clk 0:00:55]}  Qd6 {[%clk 0:01:54]} 37. Qf6 {[%clk 0:00:54]}  Qd4 {[%clk 0:01:53]} 38. Qe7 {[%clk 0:00:48]}  Kg7 {[%clk 0:01:50]} 39. Rf3 {[%clk 0:00:46]}  Rf8 {[%clk 0:01:46]} 40. Rf4 {[%clk 0:00:45]}  Qe5 {[%clk 0:01:42]} 41. Qa7 {[%clk 0:00:44]}  Qd6 {[%clk 0:01:38]} 42. h5 {[%clk 0:00:42]}  g5 {[%clk 0:01:32]} 43. h6+ {[%clk 0:00:33]}  Kg6 {[%clk 0:01:24]} 44. Qa1 {[%clk 0:00:25]}  e5 {[%clk 0:01:06]} 45. Rf3 {[%clk 0:00:25]}  Kxh6 {[%clk 0:01:05]} 46. Re3 {[%clk 0:00:24]}  f6 {[%clk 0:01:04]} 47. Bd5 {[%clk 0:00:25]}  Kg6 {[%clk 0:00:59]} 48. Kg2 {[%clk 0:00:22]}  h5 {[%clk 0:00:57]} 49. Ra3 {[%clk 0:00:21]}  e4 {[%clk 0:00:44]} 50. Ra7 {[%clk 0:00:22]}  Qe5 {[%clk 0:00:42]} 51. Qa3 {[%clk 0:00:13]}  f5 {[%clk 0:00:31]} 52. Rb7 {[%clk 0:00:08]}  Qf6 {[%clk 0:00:23]} 53. Rc7 {[%clk 0:00:06]}  Qe5 {[%clk 0:00:19]} 54. Rc6+ {[%clk 0:00:05]}  Rf6 {[%clk 0:00:19]} 55. Qa8 {[%clk 0:00:06]}  f4 {[%clk 0:00:15]} 56. Qg8+ {[%clk 0:00:05]}  Kh6 {[%clk 0:00:13]} 57. Qh8+ {[%clk 0:00:05]}  Kg6 {[%clk 0:00:13]} 58. Rc8 {[%clk 0:00:02]}  fxg3 {[%clk 0:00:07]} 59. Rg8+ {[%clk 0:00:03]}  Kf5 {[%clk 0:00:07]} 60. Qxh5 {[%clk 0:00:02]}  Qf4 {[%clk 0:00:06]} 61. Qh3+ {[%clk 0:00:02]}  Ke5 {[%clk 0:00:07]} 62. Re8+ {[%clk 0:00:02]}  Kd4 {[%clk 0:00:07]} 63. Qxg3 {[%clk 0:00:02]}  Qxg3+ {[%clk 0:00:07]} 64. Kxg3 {[%clk 0:00:03]}  Rf4 {[%clk 0:00:07]} 65. Rb8 {[%clk 0:00:03]}  Rf3+ {[%clk 0:00:07]} 66. Kg2 {[%clk 0:00:03]}  Nd3 {[%clk 0:00:07]} 67. Rxb6 {[%clk 0:00:03]}  Rxf2+ {[%clk 0:00:07]} 68. Kg3 {[%clk 0:00:02]}  e3 {[%clk 0:00:07]} 69. Re6 {[%clk 0:00:02]}  Nf4 {[%clk 0:00:07]} 70. Re8 {[%clk 0:00:02]}  Nxd5 {[%clk 0:00:04]} 71. cxd5 {[%clk 0:00:03]}  Kxd5 {[%clk 0:00:04]} 72. b6 {[%clk 0:00:02]}  Rb2 {[%clk 0:00:04]} 73. Rxe3 {[%clk 0:00:02]}  Rxb6 {[%clk 0:00:05]} 74. Kg4 {[%clk 0:00:03]}  Rb4+ {[%clk 0:00:05]} 75. Kxg5 {[%clk 0:00:03]}  Re4 {[%clk 0:00:05]} 76. Rxe4 {[%clk 0:00:04]}  Kxe4 {[%clk 0:00:06]} 1/2-1/2


[Site "https://www.chess.com"]

[Event "Titled Tuesday Blitz September 27 Late 2022"]
[White "Pakleza, Zbigniew"]
[Black "Rosen, Eric"]
[WhiteFideId "1119290"]
[BlackFideId "2032562"]
[WhiteElo "2411"]
[BlackElo "2362"]
[Result "1-0"]
[Round "06"]
[TimeControl "180+1"]
[Date "2022.09.28"]
[WhiteClock "0:00:46"]
[BlackClock "0:00:02"]

1. d4 {[%clk 0:03:00]}  d5 {[%clk 0:02:56]} 2. Bf4 {[%clk 0:03:00]}  Nf6 {[%clk 0:02:56]} 3. e3 {[%clk 0:03:01]}  c5 {[%clk 0:02:55]} 4. c3 {[%clk 0:03:01]}  Nc6 {[%clk 0:02:52]} 5. Nd2 {[%clk 0:03:00]}  cxd4 {[%clk 0:02:51]} 6. cxd4 {[%clk 0:03:00]}  Bf5 {[%clk 0:02:51]} 7. Qb3 {[%clk 0:02:56]}  Qd7 {[%clk 0:02:47]} 8. Ngf3 {[%clk 0:02:55]}  a6 {[%clk 0:02:00]} 9. Rc1 {[%clk 0:02:56]}  e6 {[%clk 0:01:52]} 10. Be2 {[%clk 0:02:50]}  Bd6 {[%clk 0:01:45]} 11. Bxd6 {[%clk 0:02:47]}  Qxd6 {[%clk 0:01:45]} 12. Qxb7 {[%clk 0:02:44]}  O-O {[%clk 0:01:27]} 13. Rxc6 {[%clk 0:02:32]}  Qd8 {[%clk 0:01:23]} 14. Qc7 {[%clk 0:02:28]}  Qe8 {[%clk 0:01:18]} 15. O-O {[%clk 0:02:27]}  e5 {[%clk 0:01:14]} 16. Nxe5 {[%clk 0:02:01]}  Nd7 {[%clk 0:00:59]} 17. Ndf3 {[%clk 0:01:46]}  Nxe5 {[%clk 0:00:55]} 18. Nxe5 {[%clk 0:01:23]}  f6 {[%clk 0:00:55]} 19. Bf3 {[%clk 0:01:04]}  fxe5 {[%clk 0:00:55]} 20. Bxd5+ {[%clk 0:01:04]}  Kh8 {[%clk 0:00:55]} 21. Qxe5 {[%clk 0:01:03]}  Qxe5 {[%clk 0:00:21]} 22. dxe5 {[%clk 0:01:04]}  Rad8 {[%clk 0:00:21]} 23. e4 {[%clk 0:01:02]}  Rfe8 {[%clk 0:00:15]} 24. f4 {[%clk 0:00:56]}  Bg4 {[%clk 0:00:11]} 25. Kf2 {[%clk 0:00:53]}  Rb8 {[%clk 0:00:10]} 26. b3 {[%clk 0:00:52]}  Bd7 {[%clk 0:00:09]} 27. Rc7 {[%clk 0:00:46]}  Bb5 {[%clk 0:00:08]} 28. Rfc1 {[%clk 0:00:47]}  a5 {[%clk 0:00:07]} 29. a4 {[%clk 0:00:46]}  Bd3 {[%clk 0:00:04]} 30. Ke3 {[%clk 0:00:45]}  Ba6 {[%clk 0:00:03]} 31. Ra7 {[%clk 0:00:45]}  Bc8 {[%clk 0:00:02]} 32. Rcc7 {[%clk 0:00:46]} 1-0


[Site "https://www.chess.com"]